[Event "Titled Tuesday Blitz November 07 Early 2023"]
[White "Adewumi, Tanitoluwa"]
[Black "Yanchenko, Roman"]
[WhiteFideId "30966396"]
[BlackFideId "4137329"]
[WhiteElo "2655"]
[BlackElo "2848"]
[Result "0-1"]
[Round "7"]
[TimeControl "180+1"]
[Date "2023.11.07"]
[WhiteClock "0:00:00"]
[BlackClock "0:00:03"]
[Board "18"]

1. e4 {[%clk 0:03:00]}  e6 {[%clk 0:03:00]} 2. Nc3 {[%clk 0:02:57]}  d5 {[%clk 0:03:00]} 3. Nf3 {[%clk 0:02:58]}  c5 {[%clk 0:02:58]} 4. d4 {[%clk 0:02:52]}  Nc6 {[%clk 0:02:58]} 5. exd5 {[%clk 0:02:45]}  exd5 {[%clk 0:02:58]} 6. dxc5 {[%clk 0:02:43]}  d4 {[%clk 0:02:52]} 7. Nb5 {[%clk 0:02:24]}  Bxc5 {[%clk 0:02:44]} 8. Bf4 {[%clk 0:02:23]}  Bb4+ {[%clk 0:02:06]} 9. c3 {[%clk 0:02:01]}  dxc3 {[%clk 0:02:06]} 10. bxc3 {[%clk 0:01:53]}  Qxd1+ {[%clk 0:02:06]} 11. Rxd1 {[%clk 0:01:54]}  Ba5 {[%clk 0:02:06]} 12. Bc4 {[%clk 0:01:32]}  Be6 {[%clk 0:01:42]} 13. Nd6+ {[%clk 0:01:03]}  Ke7 {[%clk 0:01:42]} 14. Bxe6 {[%clk 0:00:51]}  Bxc3+ {[%clk 0:01:41]} 15. Ke2 {[%clk 0:00:43]}  fxe6 {[%clk 0:01:40]} 16. Nxb7 {[%clk 0:00:43]}  Nf6 {[%clk 0:01:37]} 17. Bd6+ {[%clk 0:00:39]}  Kf7 {[%clk 0:01:37]} 18. Rc1 {[%clk 0:00:37]}  Nd5 {[%clk 0:01:36]} 19. Rhd1 {[%clk 0:00:35]}  Rhc8 {[%clk 0:01:28]} 20. Rxd5 {[%clk 0:00:30]}  exd5 {[%clk 0:01:28]} 21. Rxc3 {[%clk 0:00:30]}  Nd4+ {[%clk 0:01:28]} 22. Kd3 {[%clk 0:00:30]}  Rxc3+ {[%clk 0:01:22]} 23. Kxc3 {[%clk 0:00:31]}  Nxf3 {[%clk 0:01:21]} 24. gxf3 {[%clk 0:00:31]}  Ke6 {[%clk 0:01:18]} 25. Bc5 {[%clk 0:00:30]}  Rb8 {[%clk 0:01:14]} 26. Na5 {[%clk 0:00:26]}  a6 {[%clk 0:01:04]} 27. Nb3 {[%clk 0:00:26]}  Rc8 {[%clk 0:01:00]} 28. Kd3 {[%clk 0:00:25]}  g6 {[%clk 0:00:59]} 29. Be3 {[%clk 0:00:25]}  Rf8 {[%clk 0:00:58]} 30. Nc5+ {[%clk 0:00:24]}  Kd6 {[%clk 0:00:58]} 31. Nxa6 {[%clk 0:00:25]}  Rxf3 {[%clk 0:00:58]} 32. Nb4 {[%clk 0:00:24]}  Rh3 {[%clk 0:00:51]} 33. a4 {[%clk 0:00:23]}  Rh4 {[%clk 0:00:46]} 34. Bd4 {[%clk 0:00:20]}  Rxh2 {[%clk 0:00:44]} 35. a5 {[%clk 0:00:19]}  Rh3+ {[%clk 0:00:43]} 36. Be3 {[%clk 0:00:15]}  Rh4 {[%clk 0:00:44]} 37. Bd4 {[%clk 0:00:15]}  Rh3+ {[%clk 0:00:44]} 38. Kd2 {[%clk 0:00:15]}  Ra3 {[%clk 0:00:43]} 39. a6 {[%clk 0:00:14]}  h5 {[%clk 0:00:42]} 40. a7 {[%clk 0:00:11]}  h4 {[%clk 0:00:40]} 41. Nd3 {[%clk 0:00:12]}  Ra2+ {[%clk 0:00:38]} 42. Ke3 {[%clk 0:00:11]}  h3 {[%clk 0:00:36]} 43. Be5+ {[%clk 0:00:11]}  Ke7 {[%clk 0:00:20]} 44. Bb8 {[%clk 0:00:11]}  Rxa7 {[%clk 0:00:20]} 45. Nf4 {[%clk 0:00:05]}  Ra3+ {[%clk 0:00:18]} 46. Ke2 {[%clk 0:00:05]}  g5 {[%clk 0:00:18]} 47. Nxd5+ {[%clk 0:00:04]}  Ke6 {[%clk 0:00:19]} 48. Ne3 {[%clk 0:00:04]}  Rb3 {[%clk 0:00:18]} 49. Bg3 {[%clk 0:00:03]}  Kf6 {[%clk 0:00:17]} 50. Kf3 {[%clk 0:00:03]}  Kg6 {[%clk 0:00:15]} 51. Kg4 {[%clk 0:00:03]}  Rb4+ {[%clk 0:00:15]} 52. Kxh3 {[%clk 0:00:04]}  Kh5 {[%clk 0:00:16]} 53. Kg2 {[%clk 0:00:04]}  Ra4 {[%clk 0:00:16]} 54. Kf3 {[%clk 0:00:05]}  Kg6 {[%clk 0:00:17]} 55. Ng2 {[%clk 0:00:04]}  Kf5 {[%clk 0:00:17]} 56. Ne3+ {[%clk 0:00:05]}  Kf6 {[%clk 0:00:18]} 57. Ke2 {[%clk 0:00:05]}  Kg6 {[%clk 0:00:18]} 58. Kd3 {[%clk 0:00:06]}  Kh5 {[%clk 0:00:19]} 59. Nc4 {[%clk 0:00:05]}  Kg4 {[%clk 0:00:18]} 60. Ne5+ {[%clk 0:00:05]}  Kf5 {[%clk 0:00:18]} 61. Ke3 {[%clk 0:00:03]}  Ra3+ {[%clk 0:00:17]} 62. Kd4 {[%clk 0:00:02]}  Ra4+ {[%clk 0:00:16]} 63. Kd5 {[%clk 0:00:02]}  Ra5+ {[%clk 0:00:16]} 64. Kd6 {[%clk 0:00:03]}  Ra3 {[%clk 0:00:16]} 65. Nc6 {[%clk 0:00:02]}  Ke4 {[%clk 0:00:16]} 66. Ke6 {[%clk 0:00:02]}  g4 {[%clk 0:00:15]} 67. Ne5 {[%clk 0:00:01]}  Ra6+ {[%clk 0:00:15]} 68. Kf7 {[%clk 0:00:02]}  Kf5 {[%clk 0:00:16]} 69. Kg7 {[%clk 0:00:02]}  Ra7+ {[%clk 0:00:16]} 70. Kh6 {[%clk 0:00:02]}  Rb7 {[%clk 0:00:16]} 71. Nd3 {[%clk 0:00:02]}  Rb6+ {[%clk 0:00:16]} 72. Kh5 {[%clk 0:00:02]}  Rb7 {[%clk 0:00:16]} 73. Kh6 {[%clk 0:00:02]}  Rd7 {[%clk 0:00:15]} 74. Nf4 {[%clk 0:00:02]}  Rd6+ {[%clk 0:00:15]} 75. Kh5 {[%clk 0:00:03]}  Rd1 {[%clk 0:00:15]} 76. Kh6 {[%clk 0:00:02]}  Rd4 {[%clk 0:00:15]} 77. Ng2 {[%clk 0:00:02]}  Ke4 {[%clk 0:00:12]} 78. Kg5 {[%clk 0:00:01]}  Kf3 {[%clk 0:00:10]} 79. Nh4+ {[%clk 0:00:02]}  Ke2 {[%clk 0:00:10]} 80. Nf5 {[%clk 0:00:02]}  Ra4 {[%clk 0:00:10]} 81. Ne3 {[%clk 0:00:02]}  Kf3 {[%clk 0:00:10]} 82. Nf5 {[%clk 0:00:03]}  Ra5 {[%clk 0:00:11]} 83. Kg6 {[%clk 0:00:03]}  Ke4 {[%clk 0:00:09]} 84. Nh4 {[%clk 0:00:03]}  Rb5 {[%clk 0:00:09]} 85. Kf6 {[%clk 0:00:02]}  Ra5 {[%clk 0:00:09]} 86. Kg6 {[%clk 0:00:02]}  Rb5 {[%clk 0:00:10]} 87. Kg7 {[%clk 0:00:02]}  Rc5 {[%clk 0:00:11]} 88. Ng6 {[%clk 0:00:03]}  Kf5 {[%clk 0:00:10]} 89. Kf7 {[%clk 0:00:02]}  Ra5 {[%clk 0:00:09]} 90. Ne7+ {[%clk 0:00:02]}  Kg5 {[%clk 0:00:09]} 91. Ke6 {[%clk 0:00:02]}  Ra1 {[%clk 0:00:09]} 92. Ke5 {[%clk 0:00:02]}  Re1+ {[%clk 0:00:09]} 93. Kd6 {[%clk 0:00:03]}  Rd1+ {[%clk 0:00:09]} 94. Nd5 {[%clk 0:00:03]}  Kf5 {[%clk 0:00:10]} 95. Kc5 {[%clk 0:00:04]}  Ra1 {[%clk 0:00:09]} 96. Kd4 {[%clk 0:00:04]}  Rd1+ {[%clk 0:00:08]} 97. Kc4 {[%clk 0:00:04]}  Ra1 {[%clk 0:00:08]} 98. Ne3+ {[%clk 0:00:04]}  Kg5 {[%clk 0:00:08]} 99. Kd3 {[%clk 0:00:05]}  Ra3+ {[%clk 0:00:09]} 100. Ke4 {[%clk 0:00:05]}  Ra4+ {[%clk 0:00:09]} 101. Ke5 {[%clk 0:00:05]}  Ra5+ {[%clk 0:00:10]} 102. Nd5 {[%clk 0:00:06]}  Rb5 {[%clk 0:00:10]} 103. Bf4+ {[%clk 0:00:06]}  Kh4 {[%clk 0:00:10]} 104. Ke4 {[%clk 0:00:06]}  Kh3 {[%clk 0:00:10]} 105. Bg3 {[%clk 0:00:06]}  Kg2 {[%clk 0:00:06]} 106. Ne3+ {[%clk 0:00:06]}  Kh3 {[%clk 0:00:07]} 107. Kf4 {[%clk 0:00:06]}  Rb4+ {[%clk 0:00:07]} 108. Kf5 {[%clk 0:00:07]}  Ra4 {[%clk 0:00:07]} 109. Bf4 {[%clk 0:00:05]}  Ra2 {[%clk 0:00:07]} 110. Nxg4 {[%clk 0:00:04]}  Kg2 {[%clk 0:00:03]} 111. Be3 {[%clk 0:00:02]}  Kf3 {[%clk 0:00:03]} 112. Kg5 {[%clk 0:00:00]}  Ra5+ {[%clk 0:00:03]} 0-1


[Site "https://www.chess.com"]

[Event "Titled Tuesday Blitz November 07 Early 2023"]
[White "Kozak, Antoni"]
[Black "Pranesh M"]
[WhiteFideId "21832030"]
[BlackFideId "35028600"]
[WhiteElo "2807"]
[BlackElo "3021"]
[Result "1-0"]
[Round "7"]
[TimeControl "180+1"]
[Date "2023.11.07"]
[WhiteClock "0:00:15"]
[BlackClock "0:01:31"]
[Board "19"]

1. Nf3 {[%clk 0:03:00]}  b6 {[%clk 0:02:59]} 2. e4 {[%clk 0:02:55]}  Bb7 {[%clk 0:03:00]} 3. Nc3 {[%clk 0:02:56]}  c5 {[%clk 0:02:59]} 4. d4 {[%clk 0:02:54]}  cxd4 {[%clk 0:03:00]} 5. Nxd4 {[%clk 0:02:55]}  e5 {[%clk 0:03:00]} 6. Nf5 {[%clk 0:02:51]}  Nf6 {[%clk 0:02:51]} 7. Bg5 {[%clk 0:02:47]}  h6 {[%clk 0:02:49]} 8. Bxf6 {[%clk 0:02:40]}  Qxf6 {[%clk 0:02:50]} 9. Nd5 {[%clk 0:02:40]}  Qd8 {[%clk 0:02:47]} 10. Bc4 {[%clk 0:02:33]}  g6 {[%clk 0:02:47]} 11. Nfe3 {[%clk 0:02:32]}  Bg7 {[%clk 0:02:47]} 12. O-O {[%clk 0:02:30]}  O-O {[%clk 0:02:47]} 13. Qg4 {[%clk 0:02:26]}  d6 {[%clk 0:02:45]} 14. Rfd1 {[%clk 0:02:17]}  Kh7 {[%clk 0:02:44]} 15. Nc3 {[%clk 0:01:56]}  Nc6 {[%clk 0:02:41]} 16. Bd5 {[%clk 0:01:55]}  Rb8 {[%clk 0:02:37]} 17. Rd2 {[%clk 0:01:54]}  Bc8 {[%clk 0:02:37]} 18. Qd1 {[%clk 0:01:53]}  Nd4 {[%clk 0:02:37]} 19. Ne2 {[%clk 0:01:51]}  Ba6 {[%clk 0:02:35]} 20. Nxd4 {[%clk 0:01:41]}  exd4 {[%clk 0:02:36]} 21. Nf1 {[%clk 0:01:41]}  Qg5 {[%clk 0:02:33]} 22. a4 {[%clk 0:01:29]}  Qe5 {[%clk 0:02:31]} 23. Ra3 {[%clk 0:00:48]}  f5 {[%clk 0:02:29]} 24. Ng3 {[%clk 0:00:44]}  Rbc8 {[%clk 0:02:26]} 25. Rf3 {[%clk 0:00:41]}  f4 {[%clk 0:02:24]} 26. Ne2 {[%clk 0:00:39]}  Bc4 {[%clk 0:02:06]} 27. Nxd4 {[%clk 0:00:30]}  Bxd5 {[%clk 0:02:06]} 28. exd5 {[%clk 0:00:30]}  Qxd5 {[%clk 0:02:07]} 29. h3 {[%clk 0:00:28]}  Qe4 {[%clk 0:02:06]} 30. Rfd3 {[%clk 0:00:27]}  Rce8 {[%clk 0:02:03]} 31. c3 {[%clk 0:00:24]}  a6 {[%clk 0:01:44]} 32. Nf3 {[%clk 0:00:24]}  b5 {[%clk 0:01:37]} 33. axb5 {[%clk 0:00:17]}  axb5 {[%clk 0:01:38]} 34. Rxd6 {[%clk 0:00:17]}  Re7 {[%clk 0:01:38]} 35. Kh2 {[%clk 0:00:17]}  b4 {[%clk 0:01:38]} 36. cxb4 {[%clk 0:00:13]}  Rb8 {[%clk 0:01:39]} 37. Rd7 {[%clk 0:00:13]}  Rb7 {[%clk 0:01:37]} 38. Rxe7 {[%clk 0:00:13]}  Qxe7 {[%clk 0:01:38]} 39. b5 {[%clk 0:00:12]}  Rxb5 {[%clk 0:01:38]} 40. Rd7 {[%clk 0:00:12]}  Qf6 {[%clk 0:01:36]} 41. b3 {[%clk 0:00:12]}  h5 {[%clk 0:01:32]} 42. Qd3 {[%clk 0:00:12]}  Kh6 {[%clk 0:01:32]} 43. Qxb5 {[%clk 0:00:11]}  Qe6 {[%clk 0:01:32]} 44. Qg5+ {[%clk 0:00:11]}  Kh7 {[%clk 0:01:32]} 45. Qxh5+ {[%clk 0:00:09]}  Kg8 {[%clk 0:01:30]} 46. Ng5 {[%clk 0:00:09]}  Qxd7 {[%clk 0:01:29]} 47. Qxg6 {[%clk 0:00:07]}  f3 {[%clk 0:01:25]} 48. Qe6+ {[%clk 0:00:07]}  Qxe6 {[%clk 0:01:23]} 49. Nxe6 {[%clk 0:00:08]}  Be5+ {[%clk 0:01:23]} 50. Kg1 {[%clk 0:00:09]}  fxg2 {[%clk 0:01:23]} 51. Kxg2 {[%clk 0:00:09]}  Bf6 {[%clk 0:01:23]} 52. Nf4 {[%clk 0:00:09]}  Kf7 {[%clk 0:01:23]} 53. Kf3 {[%clk 0:00:10]}  Be5 {[%clk 0:01:23]} 54. Ke4 {[%clk 0:00:10]}  Bd6 {[%clk 0:01:24]} 55. Nd5 {[%clk 0:00:10]}  Bc5 {[%clk 0:01:24]} 56. f4 {[%clk 0:00:10]}  Ke6 {[%clk 0:01:24]} 57. f5+ {[%clk 0:00:11]}  Kd6 {[%clk 0:01:25]} 58. b4 {[%clk 0:00:11]}  Bf2 {[%clk 0:01:25]} 59. b5 {[%clk 0:00:11]}  Bh4 {[%clk 0:01:25]} 60. b6 {[%clk 0:00:11]}  Kc6 {[%clk 0:01:26]} 61. Ke5 {[%clk 0:00:11]}  Be1 {[%clk 0:01:24]} 62. Ke6 {[%clk 0:00:11]}  Bf2 {[%clk 0:01:25]} 63. f6 {[%clk 0:00:11]}  Bc5 {[%clk 0:01:25]} 64. f7 {[%clk 0:00:12]}  Kb7 {[%clk 0:01:26]} 65. h4 {[%clk 0:00:12]}  Bf8 {[%clk 0:01:27]} 66. h5 {[%clk 0:00:13]}  Kc6 {[%clk 0:01:28]} 67. Kf6 {[%clk 0:00:13]}  Kb7 {[%clk 0:01:23]} 68. Ne7 {[%clk 0:00:13]}  Kxb6 {[%clk 0:01:21]} 69. Ng6 {[%clk 0:00:13]}  Bh6 {[%clk 0:01:21]} 70. f8=Q {[%clk 0:00:13]}  Bxf8 {[%clk 0:01:22]} 71. Nxf8 {[%clk 0:00:14]}  Kc6 {[%clk 0:01:23]} 72. h6 {[%clk 0:00:15]}  Kd6 {[%clk 0:01:23]} 73. h7 {[%clk 0:00:15]}  Kd5 {[%clk 0:01:24]} 74. h8=Q {[%clk 0:00:16]}  Ke4 {[%clk 0:01:25]} 75. Ng6 {[%clk 0:00:16]}  Kf3 {[%clk 0:01:26]} 76. Qh3+ {[%clk 0:00:16]}  Kf2 {[%clk 0:01:26]} 77. Kf5 {[%clk 0:00:16]}  Ke2 {[%clk 0:01:26]} 78. Ke4 {[%clk 0:00:16]}  Kd2 {[%clk 0:01:27]} 79. Qe3+ {[%clk 0:00:16]}  Kc2 {[%clk 0:01:28]} 80. Nf4 {[%clk 0:00:16]}  Kb2 {[%clk 0:01:28]} 81. Nd3+ {[%clk 0:00:16]}  Kc2 {[%clk 0:01:29]} 82. Nc5 {[%clk 0:00:15]}  Kb2 {[%clk 0:01:30]} 83. Kd4 {[%clk 0:00:15]}  Kc2 {[%clk 0:01:30]} 84. Kc4 {[%clk 0:00:16]}  Kb2 {[%clk 0:01:31]} 85. Qb3+ {[%clk 0:00:16]}  Kc1 {[%clk 0:01:31]} 86. Qa2 {[%clk 0:00:15]}  Kd1 {[%clk 0:01:31]} 87. Kd3 {[%clk 0:00:16]}  Ke1 {[%clk 0:01:31]} 88. Qe2# {[%clk 0:00:15]} 1-0


[Site "https://www.chess.com"]

[Event "Titled Tuesday Blitz November 07 Early 2023"]
[White "Deac, Bogdan-Daniel"]
[Black "Suyarov, Mukhammadzokhid"]
[WhiteFideId "1226380"]
[BlackFideId "14210495"]
[WhiteElo "2989"]
[BlackElo "2819"]
[Result "1-0"]
[Round "7"]
[TimeControl "180+1"]
[Date "2023.11.07"]
[WhiteClock "0:00:05"]
[BlackClock "0:00:00"]
[Board "20"]

1. b3 {[%clk 0:03:00]}  e5 {[%clk 0:02:58]} 2. Bb2 {[%clk 0:03:01]}  Nc6 {[%clk 0:02:58]} 3. Nf3 {[%clk 0:03:01]}  e4 {[%clk 0:02:57]} 4. Nd4 {[%clk 0:03:01]}  Qf6 {[%clk 0:02:53]} 5. e3 {[%clk 0:03:00]}  Bc5 {[%clk 0:02:49]} 6. c3 {[%clk 0:02:56]}  d5 {[%clk 0:02:48]} 7. d3 {[%clk 0:02:56]}  Nge7 {[%clk 0:02:42]} 8. Nd2 {[%clk 0:02:47]}  Qg6 {[%clk 0:02:39]} 9. dxe4 {[%clk 0:02:23]}  dxe4 {[%clk 0:02:38]} 10. Qc2 {[%clk 0:02:23]}  Bxd4 {[%clk 0:02:26]} 11. cxd4 {[%clk 0:02:19]}  Bf5 {[%clk 0:02:22]} 12. a3 {[%clk 0:02:11]}  O-O {[%clk 0:02:17]} 13. h3 {[%clk 0:02:07]}  h5 {[%clk 0:02:14]} 14. g4 {[%clk 0:01:48]}  hxg4 {[%clk 0:02:09]} 15. Rg1 {[%clk 0:01:38]}  Rfe8 {[%clk 0:01:13]} 16. hxg4 {[%clk 0:01:10]}  Bxg4 {[%clk 0:00:59]} 17. Be2 {[%clk 0:00:54]}  f5 {[%clk 0:00:55]} 18. Bxg4 {[%clk 0:00:31]}  fxg4 {[%clk 0:00:55]} 19. Qxe4 {[%clk 0:00:31]}  Qf7 {[%clk 0:00:27]} 20. Qxg4 {[%clk 0:00:26]}  Nd5 {[%clk 0:00:27]} 21. O-O-O {[%clk 0:00:23]}  a5 {[%clk 0:00:27]} 22. Rg3 {[%clk 0:00:19]}  a4 {[%clk 0:00:23]} 23. Rdg1 {[%clk 0:00:18]}  Re7 {[%clk 0:00:14]} 24. Rf3 {[%clk 0:00:14]}  Nf6 {[%clk 0:00:09]} 25. Qg5 {[%clk 0:00:07]}  Rd8 {[%clk 0:00:06]} 26. Rxf6 {[%clk 0:00:06]}  Qd5 {[%clk 0:00:04]} 27. Qxd5+ {[%clk 0:00:05]}  Rxd5 {[%clk 0:00:05]} 28. Rfg6 {[%clk 0:00:05]}  Rf7 {[%clk 0:00:02]} 29. e4 {[%clk 0:00:05]}  Rh5 {[%clk 0:00:00]} 30. d5 {[%clk 0:00:05]} 1-0


[Site "https://www.chess.com"]

[Event "Titled Tuesday Blitz November 07 Early 2023"]
[White "Rostovtsev, Dmitry"]
[Black "Orozbaev, Eldiar"]
[WhiteFideId "34278320"]
[BlackFideId "13802240"]
[WhiteElo "2935"]
[BlackElo "2749"]
[Result "1-0"]
[Round "7"]
[TimeControl "180+1"]
[Date "2023.11.07"]
[WhiteClock "0:00:03"]
[BlackClock "0:00:01"]
[Board "24"]

1. d4 {[%clk 0:03:00]}  Nf6 {[%clk 0:02:59]} 2. c4 {[%clk 0:03:00]}  e6 {[%clk 0:03:00]} 3. Nc3 {[%clk 0:03:01]}  d5 {[%clk 0:02:58]} 4. cxd5 {[%clk 0:03:01]}  exd5 {[%clk 0:02:59]} 5. Bf4 {[%clk 0:03:01]}  Bd6 {[%clk 0:02:56]} 6. Bxd6 {[%clk 0:03:01]}  Qxd6 {[%clk 0:02:57]} 7. e3 {[%clk 0:03:01]}  c6 {[%clk 0:02:57]} 8. Bd3 {[%clk 0:03:01]}  O-O {[%clk 0:02:57]} 9. Nge2 {[%clk 0:03:01]}  Re8 {[%clk 0:02:55]} 10. h3 {[%clk 0:03:01]}  Nbd7 {[%clk 0:02:55]} 11. Qd2 {[%clk 0:03:01]}  b6 {[%clk 0:02:52]} 12. O-O {[%clk 0:02:58]}  Bb7 {[%clk 0:02:52]} 13. Rad1 {[%clk 0:02:54]}  Nf8 {[%clk 0:02:50]} 14. a3 {[%clk 0:02:40]}  Ng6 {[%clk 0:02:49]} 15. Ng3 {[%clk 0:02:31]}  Nh4 {[%clk 0:02:42]} 16. Nf5 {[%clk 0:02:24]}  Nxf5 {[%clk 0:02:40]} 17. Bxf5 {[%clk 0:02:25]}  g6 {[%clk 0:02:32]} 18. Bd3 {[%clk 0:02:25]}  Kg7 {[%clk 0:02:31]} 19. Qc2 {[%clk 0:02:25]}  Re7 {[%clk 0:02:26]} 20. b4 {[%clk 0:02:15]}  Rae8 {[%clk 0:02:26]} 21. Qb2 {[%clk 0:02:10]}  Bc8 {[%clk 0:02:25]} 22. b5 {[%clk 0:02:07]}  cxb5 {[%clk 0:02:18]} 23. Nxb5 {[%clk 0:02:08]}  Qb8 {[%clk 0:02:19]} 24. Qb4 {[%clk 0:02:01]}  Bxh3 {[%clk 0:02:14]} 25. gxh3 {[%clk 0:01:46]}  Rxe3 {[%clk 0:02:14]} 26. Nd6 {[%clk 0:00:48]}  Rxh3 {[%clk 0:02:09]} 27. Kg2 {[%clk 0:00:38]}  Rh5 {[%clk 0:01:54]} 28. Nxe8+ {[%clk 0:00:37]}  Nxe8 {[%clk 0:01:55]} 29. Rh1 {[%clk 0:00:34]}  Rg5+ {[%clk 0:01:55]} 30. Kf1 {[%clk 0:00:35]}  Qf4 {[%clk 0:01:52]} 31. Qd2 {[%clk 0:00:30]}  Qf3 {[%clk 0:01:42]} 32. Qxg5 {[%clk 0:00:12]}  h5 {[%clk 0:00:57]} 33. Be2 {[%clk 0:00:05]}  Qxh1+ {[%clk 0:00:56]} 34. Qg1 {[%clk 0:00:06]}  Qh4 {[%clk 0:00:56]} 35. Qg3 {[%clk 0:00:03]}  Qh1+ {[%clk 0:00:55]} 36. Qg1 {[%clk 0:00:04]}  Qh4 {[%clk 0:00:54]} 37. Bf3 {[%clk 0:00:04]}  Qe7 {[%clk 0:00:48]} 38. Qg3 {[%clk 0:00:03]}  Qxa3 {[%clk 0:00:48]} 39. Bxd5 {[%clk 0:00:02]}  Qa4 {[%clk 0:00:45]} 40. Qe5+ {[%clk 0:00:02]}  Nf6 {[%clk 0:00:46]} 41. Bf3 {[%clk 0:00:02]}  Qb3 {[%clk 0:00:42]} 42. Qe3 {[%clk 0:00:03]}  Qc4+ {[%clk 0:00:41]} 43. Kg1 {[%clk 0:00:02]}  h4 {[%clk 0:00:33]} 44. d5 {[%clk 0:00:03]}  h3 {[%clk 0:00:34]} 45. d6 {[%clk 0:00:03]}  h2+ {[%clk 0:00:15]} 46. Kxh2 {[%clk 0:00:04]}  Kh7 {[%clk 0:00:11]} 47. Qd4 {[%clk 0:00:03]}  Qe6 {[%clk 0:00:07]} 48. d7 {[%clk 0:00:02]}  Nxd7 {[%clk 0:00:04]} 49. Qxd7 {[%clk 0:00:03]}  Qe5+ {[%clk 0:00:05]} 50. Kg2 {[%clk 0:00:03]}  Qg5+ {[%clk 0:00:04]} 51. Kf1 {[%clk 0:00:04]}  Qf6 {[%clk 0:00:03]} 52. Qh3+ {[%clk 0:00:04]}  Kg7 {[%clk 0:00:03]} 53. Qg4 {[%clk 0:00:04]}  Kg8 {[%clk 0:00:02]} 54. Qc8+ {[%clk 0:00:03]}  Kg7 {[%clk 0:00:02]} 55. Qg4 {[%clk 0:00:04]}  Kg8 {[%clk 0:00:02]} 56. Kg2 {[%clk 0:00:04]}  Qc3 {[%clk 0:00:02]} 57. Rd8+ {[%clk 0:00:03]}  Kh7 {[%clk 0:00:01]} 58. Qd4 {[%clk 0:00:03]}  Qc7 {[%clk 0:00:01]} 1-0


[Site "https://www.chess.com"]

[Event "Titled Tuesday Blitz November 07 Early 2023"]
[White "Talibov, Shiroghlan"]
[Black "Lukovic, Vladimir"]
[WhiteFideId "13429078"]
[BlackFideId "942952"]
[WhiteElo "2896"]
[BlackElo "2709"]
[Result "0-1"]
[Round "7"]
[TimeControl "180+1"]
[Date "2023.11.07"]
[WhiteClock "0:00:47"]
[BlackClock "0:00:43"]
[Board "27"]

1. d4 {[%clk 0:03:00]}  Nf6 {[%clk 0:02:59]} 2. c4 {[%clk 0:03:00]}  d6 {[%clk 0:02:59]} 3. Nc3 {[%clk 0:02:59]}  Bf5 {[%clk 0:02:59]} 4. f3 {[%clk 0:02:56]}  Nbd7 {[%clk 0:02:57]} 5. e4 {[%clk 0:02:56]}  Bg6 {[%clk 0:02:58]} 6. Be3 {[%clk 0:02:56]}  e5 {[%clk 0:02:58]} 7. d5 {[%clk 0:02:56]}  h5 {[%clk 0:02:57]} 8. h4 {[%clk 0:02:55]}  Be7 {[%clk 0:02:56]} 9. g3 {[%clk 0:02:50]}  a5 {[%clk 0:02:56]} 10. Nge2 {[%clk 0:02:44]}  Nc5 {[%clk 0:02:56]} 11. Nc1 {[%clk 0:02:44]}  Nfd7 {[%clk 0:02:53]} 12. Bh3 {[%clk 0:02:43]}  O-O {[%clk 0:02:52]} 13. Nd3 {[%clk 0:02:43]}  f5 {[%clk 0:02:46]} 14. Nxc5 {[%clk 0:02:41]}  Nxc5 {[%clk 0:02:46]} 15. exf5 {[%clk 0:02:38]}  Bxf5 {[%clk 0:02:46]} 16. Bxf5 {[%clk 0:02:38]}  Rxf5 {[%clk 0:02:47]} 17. Bxc5 {[%clk 0:02:38]}  dxc5 {[%clk 0:02:47]} 18. Ne4 {[%clk 0:02:39]}  Qd7 {[%clk 0:02:38]} 19. O-O {[%clk 0:02:37]}  Raf8 {[%clk 0:02:36]} 20. Kg2 {[%clk 0:02:37]}  b6 {[%clk 0:02:31]} 21. a4 {[%clk 0:02:36]}  g6 {[%clk 0:02:28]} 22. b3 {[%clk 0:02:35]}  R8f7 {[%clk 0:02:27]} 23. Qd3 {[%clk 0:02:35]}  Bf8 {[%clk 0:02:28]} 24. Rae1 {[%clk 0:02:34]}  Bh6 {[%clk 0:02:27]} 25. Re2 {[%clk 0:02:29]}  Kf8 {[%clk 0:02:27]} 26. Nc3 {[%clk 0:02:06]}  g5 {[%clk 0:02:19]} 27. hxg5 {[%clk 0:02:00]}  Rxg5 {[%clk 0:02:18]} 28. Ne4 {[%clk 0:01:58]}  Rgg7 {[%clk 0:02:07]} 29. Rh1 {[%clk 0:01:58]}  Qf5 {[%clk 0:02:07]} 30. Rf2 {[%clk 0:01:57]}  Bf4 {[%clk 0:02:03]} 31. Rh3 {[%clk 0:01:47]}  Bxg3 {[%clk 0:01:44]} 32. Rxg3 {[%clk 0:01:43]}  Rxg3+ {[%clk 0:01:44]} 33. Kxg3 {[%clk 0:01:42]}  Rg7+ {[%clk 0:01:43]} 34. Kh2 {[%clk 0:01:32]}  Qf4+ {[%clk 0:01:43]} 35. Kh3 {[%clk 0:01:32]}  Qf5+ {[%clk 0:01:35]} 36. Kh2 {[%clk 0:01:32]}  Qf4+ {[%clk 0:01:18]} 37. Kh3 {[%clk 0:01:32]}  Rg1 {[%clk 0:01:04]} 38. Rf1 {[%clk 0:01:13]}  Rg6 {[%clk 0:00:45]} 39. Qd2 {[%clk 0:01:03]}  Rg3+ {[%clk 0:00:45]} 40. Nxg3 {[%clk 0:00:55]}  Qxd2 {[%clk 0:00:45]} 41. f4 {[%clk 0:00:48]}  exf4 {[%clk 0:00:43]} 42. Nxh5 {[%clk 0:00:48]}  Qd3+ {[%clk 0:00:43]} 43. Kg2 {[%clk 0:00:47]}  Qe2+ {[%clk 0:00:43]} 0-1


[Site "https://www.chess.com"]